Workbook

Sheet Custo por trabalhador
A1: PLANILHA DE CUSTOS E FORMAÇÃO DE PREÇOS
A2: MODELO DE FORMAÇÃO DE CUSTO MENSAL PARA UM EMPREGADO
A3: * A planilha de custos e formação de preços é ferramenta de apoio à realização de estimativas da contratação e para a análise das propostas na fase de pregão e nas prorrogações contratuais. * O modelo disponibilizado na Instrução Normativa n° 5, de 26 de maio de 2017, é inspiracional, devendo ser adaptado pelo órgão ou entidade contratante às suas necessidades. * A presente proposta visa, tão somente, auxiliar aos órgão que não possuam um modelo definido na formatação dos cálculos de direitos trabalhistas para estimativas de contratos de prestação de serviços, observando as disposições da Consolidação das Leis do Trabalho - CLT e das Convenções Coletivas de Trabalho - CCT (sendo válidos, ainda, os acordos e dissídios coletivos). * É responsábilidade do usuário que optar pela utilização deste modelo a conferência das fórmulas automatizadas em conformidade com as dispoções de CLT e CCT, para minimizar o risco de equívocos no cômputo das previsões financeiras. * Dúvidas sobre a metodologia de cálculo poderão ser esclarecidas com a leitura dos Cadernos Técnicos de divulgação de valores limites em: https://www.comprasgovernamentais.gov.br/index.php/cadernos-tecnicos-e-valores-limites.
A5: MÓDULO 1 - REMUNERAÇÃO
A6: * A remuneração é definida no art. 457 da Consolidação das Leis do Trabalho. * É composta por Salário Base, Adicionais (noturno, de insalubridade ou periculosidade) e gratificações, quando houver.
A8: SALÁRIO BASE
A9: * O Salário Base vem definido na Convenção Coletiva de Trabalho da categoria profissional a ser contratada para o objeto da prestação de serviço. * O contratante deverá observar se a CCT abrange o município de prestação de serviço e se está vigente.
A11: SALÁRIO BASE
A12: Vigilante (12x36h e 44h) | B12: 2450.39
A13: Supervisor | B13: 2939.18
A15: GRATIFICAÇÃO DE FUNÇÃO
A16: * Gratificação de função, quando houver, virá informada na Convenção Coletiva de Trabalho da categoria profissional a ser contratada. * O órgão contrantante deverá observar, além da existência de gratificação, se esta incidirá sobre os adicionais, devendo adaptar a planilha ao caso em concreto. * Para o presente modelo foi considerada gratificação como percentual sobre o salário base e sem incidência sobre os adicionais (noturno, periculosidade ou insalubridade).
A18: GRATIFICAÇÃO DE FUNÇÃO
A19: Categoria | B19: Base de cálculo | C19: Percentual | D19: Valor da Gratificação
A20: =A12 -> Vigilante (12x36h e 44h) | B20: =B12 -> 2450.39 | D20: =B20*C20 -> 0
A21: =A13 -> Supervisor | B21: =B13 -> 2939.18 | D21: =B21*C21 -> 0
A23: ADICIONAIS (periculosidade ou insalubridade, se houver)
A24: * Os adicionais de periculosidade ou insalubridade, em conformidade com os art. 192 e 193 da CLT, dependem da natureza do serviço a ser prestado. * O órgão contrantante deverá observar, além da existência de previsão em CLT, se há informações na Convenção Coletiva de Trabalho acerca dos adicionais, bem como seu percentual e a base de cálculo, devendo adaptar a planilha ao caso em concreto.
A26: ADICIONAL DE PERICULOSIDADE
A27: Categoria | B27: Base de cálculo | C27: Percentual | D27: Valor
A28: Vigilante (12x36 Diurno) | B28: =B20 -> 2450.39 | C28: 0.3 | D28: =B28*C28 -> 735.117
A29: vigilante (12x36 Noturno) | B29: =B20 -> 2450.39 | C29: =C28 -> 0.3 | D29: 735.117
A30: Vigilante (44h semanais) | B30: =B20 -> 2450.39 | C30: =C29 -> 0.3 | D30: 735.117
A31: - | C31: =C30 -> 0.3 | D31: 0
A32: - | C32: =C31 -> 0.3 | D32: 0
A33: Supervisor (44h semanais) | B33: =B21 -> 2939.18 | C33: =C32 -> 0.3 | D33: =B33*C33 -> 881.754
A36: ADICIONAL NOTURNO
A37: * O Adicional Noturno e a Hora Noturna Reduzida, conforme art. 73 da CLT, serão pagos entre 22h e 5h do dia seguinte, sem prorrogação quando da jornada 12x36h. * O órgão contrantante deverá observar, além da existência do previsto em CLT, se há informações na Convenção Coletiva de Trabalho acerca da existência do percentual de adicional noturno, bem como se haverá pagamento de hora noturna reduzida e adaptar a planilha ao caso em concreto.
A39: ADICIONAL NOTURNO
A40: Categoria | B40: Base de Cálculo | C40: Proporção | D40: Percentual | E40: Valor
A41: =A29 -> vigilante (12x36 Noturno) | B41: =B12+D29 -> 3185.507 | C41: =7/12 -> 0.5833333333 | D41: 0.2 | E41: =B41*C41*D41 -> 371.6424833
A42: - | B42: 0 | C42: =7/12 -> 0.5833333333 | D42: 0 | E42: =B42*C42*D42 -> 0
A43: HORA NOTURNA REDUZIDA
A44: Categoria | B44: Base de Cálculo | C44: Proporção | D44: Percentual | E44: Valor
A45: =A29 -> vigilante (12x36 Noturno) | B45: =B12+D29 -> 3185.507 | C45: =1/12 -> 0.08333333333 | D45: =1+D41 -> 1.2 | E45: =B45*C45*D45 -> 318.5507
A46: - | B46: 0 | C46: =1/12 -> 0.08333333333 | D46: 0 | E46: =B46*C46*D46 -> 0
A48: ADICIONAL POR TRABALHO NOTURNO
A49: Categoria | B49: Adicional Noturno | C49: Hora Noturna Reduzida | D49: Valor
A50: =A29 -> vigilante (12x36 Noturno) | B50: =E41 -> 371.6424833 | C50: =E45 -> 318.5507 | D50: =SUM(B50:C50) -> 690.1931833
A51: - | B51: =E42 -> 0 | C51: =E46 -> 0 | D51: =SUM(B51:C51) -> 0
A53: ADICIONAL XXX
A54: * Em caso de previsão de outros adicionais em Convenção Coletiva de Trabalho o órgão poderá utilizar este campo.
A56: ADICIONAL XXX
A57: Categoria | B57: Base de cálculo | C57: Percentual | D57: Valor
A58: Cargo A (12x36 Diurno)
A59: Cargo A (12x36 Noturno)
A60: Cargo A (44h semanais)
A61: Cargo B (12x36 Diurno)
A62: Cargo B (12x36 Noturno)
A63: Cargo B (44h semanais)
A65: MÓDULO 1 - REMUNERAÇÃO
A66: Este quadro totaliza a remuneração devida ao trabalhador, conforme previsão da Consolidação das Leis do Trabalho e valores disponíveis na Convenção Coletiva para a categoria
A68: MÓDULO 1 - REMUNERAÇÃO
A69: Categoria | B69: Salário Base | C69: Gratificação de função | D69: Adicional de Periculosidade ou Insalubridade | E69: Adicional Noturno | F69: Adicional XXX | G69: Total
A70: =A28 -> Vigilante (12x36 Diurno) | B70: =B12 -> 2450.39 | C70: =D20 -> 0 | D70: =D28 -> 735.117 | F70: =D58 -> 0 | G70: =SUM(B70:F70) -> 3185.507
A71: =A29 -> vigilante (12x36 Noturno) | B71: =B12 -> 2450.39 | C71: =D20 -> 0 | D71: 735.117 | E71: =D50 -> 690.1931833 | F71: 0 | G71: 3875.700183
A72: =A30 -> Vigilante (44h semanais) | B72: =B12 -> 2450.39 | C72: =D20 -> 0 | D72: 735.117 | F72: 0 | G72: 3185.507
A73: - | B73: 0 | C73: =D21 -> 0 | D73: 0 | F73: 0 | G73: 0
A74: - | B74: 0 | C74: =D21 -> 0 | D74: 0 | E74: =D51 -> 0 | F74: 0 | G74: 0
A75: =A33 -> Supervisor (44h semanais) | B75: =B13 -> 2939.18 | C75: =D21 -> 0 | D75: 881.754 | F75: 0 | G75: 3820.934
A77: MÓDULO 2 - ENCARGOS E BENEFÍCIOS (ANUAIS, MENSAIS E DIÁRIOS)
A79: SUBMÓDULO 2.1 – 13° SALÁRIO, FÉRIAS E ADICIONAL DE FÉRIAS
A81: 13° SALÁRIO Previsto no Decreto 57.155, de 1965.
A82: Categoria | B82: Base de cálculo | C82: Provisionamento Mensal | D82: Valor
A83: =A70 -> Vigilante (12x36 Diurno) | B83: =G70 -> 3185.507 | C83: =1/12 -> 0.08333333333 | D83: =B83*C83 -> 265.4589167
A84: =A71 -> vigilante (12x36 Noturno) | B84: 3875.700183 | C84: =1/12 -> 0.08333333333 | D84: =B84*C84 -> 322.9750153
A85: =A72 -> Vigilante (44h semanais) | B85: 3185.507 | C85: 0.08333333333 | D85: 265.4589167
A86: - | B86: 0 | C86: 0.08333333333 | D86: 0
A87: - | B87: 0 | C87: 0.08333333333 | D87: 0
A88: =A33 -> Supervisor (44h semanais) | B88: 3820.934 | C88: 0.08333333333 | D88: 318.4111667
A90: FÉRIAS Previsto no art. 7° da Constituição Federal
A91: Categoria | B91: Base de cálculo | C91: Provisionamento Mensal | D91: Valor
A92: =A83 -> Vigilante (12x36 Diurno) | B92: =G70 -> 3185.507 | C92: 0.121 | D92: =B92*C92 -> 385.446347
A93: =A84 -> vigilante (12x36 Noturno) | B93: 3875.700183 | C93: 0.121 | D93: =B93*C93 -> 468.9597222
A94: =A85 -> Vigilante (44h semanais) | B94: 3185.507 | C94: 0.121 | D94: 385.446347
A95: - | B95: 0 | C95: 0.121 | D95: 0
A96: - | B96: 0 | C96: 0.121 | D96: 0
A97: =A88 -> Supervisor (44h semanais) | B97: 3820.934 | C97: 0.121 | D97: 462.333014
A99: ADICIONAL DE FÉRIAS - 1/3 CONSTITUCIONAL
A100: Categoria | B100: Base de cálculo | C100: Alíquota Adicional | D100: Provisionamento Mensal | E100: Valor
A101: =A92 -> Vigilante (12x36 Diurno) | B101: =G70 -> 3185.507 | C101: =1/3 -> 0.3333333333 | D101: 0.121 | E101: =B101*C101*D101 -> 128.4821157
A102: =A93 -> vigilante (12x36 Noturno) | B102: 3875.700183 | C102: =1/3 -> 0.3333333333 | D102: 0.121 | E102: =B102*C102*D102 -> 156.3199074
A103: =A94 -> Vigilante (44h semanais) | B103: 3185.507 | C103: =1/3 -> 0.3333333333 | D103: 0.121 | E103: 128.4821157
A104: - | B104: 0 | C104: 0.3333333333 | D104: 0.121 | E104: 0
A105: - | B105: 0 | C105: 0.3333333333 | D105: 0.121 | E105: 0
A106: =A97 -> Supervisor (44h semanais) | B106: 3820.934 | C106: 0.3333333333 | D106: 0.121 | E106: 154.1110047
A108: SUBMÓDULO 2.1 – 13° SALÁRIO, FÉRIAS E ADICIONAL DE FÉRIAS
A109: Categoria | B109: 13° Salário | C109: Férias | D109: 1/3 Constitucional | E109: Total
A110: =A101 -> Vigilante (12x36 Diurno) | B110: =D83 -> 265.4589167 | C110: =D92 -> 385.446347 | D110: =E101 -> 128.4821157 | E110: =SUM(B110:D110) -> 779.3873793
A111: =A102 -> vigilante (12x36 Noturno) | B111: 322.9750153 | C111: 468.9597222 | D111: 156.3199074 | E111: =SUM(B111:D111) -> 948.2546449
A112: =A103 -> Vigilante (44h semanais) | B112: 265.4589167 | C112: 385.446347 | D112: 128.4821157 | E112: 779.3873793
A113: - | B113: 0 | C113: 0 | D113: 0 | E113: 0
A114: - | B114: 0 | C114: 0 | D114: 0 | E114: 0
A115: =A106 -> Supervisor (44h semanais) | B115: 318.4111667 | C115: 462.333014 | D115: 154.1110047 | E115: 934.8551853
A117: SUBMÓDULO 2.2 - ENCARGOS PREVIDENCIÁRIOS E FGTS
A118: * Previsto no art. 195 da Constituição Federal. * Os percentuais informados não são taxativos e deverão observar o enquadramento real das empresas prestadoras de serviço, em especial no que diz respeito ao SAT-GIIL/RAT.
A120: COMPOSIÇÃO DO GPS E FGTS
A121: Encargos | B121: Percentual
A122: INSS - empregador | B122: 0.2
A123: Salário-Educação | B123: 0.025
A124: SAT- GIL/RAT | B124: 0.03
A125: SESC | B125: 0.015
A126: SENAC | B126: 0.01
A127: SEBRAE | B127: 0.006
A128: INCRA | B128: 0.002
A129: FGTS | B129: 0.08
A130: TOTAL | B130: =SUM(B122:B129) -> 0.368
A132: GPS - GUIA DA PREVIDÊNCIA SOCIAL
A133: Categoria | B133: Base de cálculo | C133: Percentual | D133: Valor
A134: =A92 -> Vigilante (12x36 Diurno) | B134: =G70+E110 -> 3964.894379 | C134: =SUM($B$122:$B$128) -> 0.288 | D134: =B134*C134 -> 1141.889581
A135: =A93 -> vigilante (12x36 Noturno) | B135: 4823.954828 | C135: =SUM($B$122:$B$128) -> 0.288 | D135: =B135*C135 -> 1389.298991
A136: =A94 -> Vigilante (44h semanais) | B136: 3964.894379 | C136: 0.288 | D136: 1141.889581
A137: - | B137: 0 | C137: 0.288 | D137: 0
A138: - | B138: 0 | C138: 0.288 | D138: 0
A139: =A97 -> Supervisor (44h semanais) | B139: 4755.789185 | C139: 0.288 | D139: 1369.667285
A141: FGTS - FUNDO DE GARANTIA POR TEMPO DE SERVIÇO
A142: Categoria | B142: Base de cálculo | C142: Percentual | D142: Valor
A143: =A101 -> Vigilante (12x36 Diurno) | B143: =G70+E110 -> 3964.894379 | C143: =$B$129 -> 0.08 | D143: =B143*C143 -> 317.1915503
A144: =A102 -> vigilante (12x36 Noturno) | B144: 4823.954828 | C144: =$B$129 -> 0.08 | D144: =B144*C144 -> 385.9163863
A145: =A103 -> Vigilante (44h semanais) | B145: 3964.894379 | C145: 0.08 | D145: 317.1915503
A146: - | B146: 0 | C146: 0.08 | D146: 0
A147: - | B147: 0 | C147: 0.08 | D147: 0
A148: =A106 -> Supervisor (44h semanais) | B148: 4755.789185 | C148: 0.08 | D148: 380.4631348
A150: SUBMÓDULO 2.2 - ENCARGOS PREVIDENCIÁRIOS E FGTS
A151: Categoria | B151: GPS | C151: FGTS | D151: Total
A152: =A110 -> Vigilante (12x36 Diurno) | B152: =D134 -> 1141.889581 | C152: =D143 -> 317.1915503 | D152: =B152+C152 -> 1459.081132
A153: =A111 -> vigilante (12x36 Noturno) | B153: =D135 -> 1389.298991 | C153: =D144 -> 385.9163863 | D153: =B153+C153 -> 1775.215377
A154: =A112 -> Vigilante (44h semanais) | B154: 1141.889581 | C154: 317.1915503 | D154: 1459.081132
A155: - | B155: 0 | C155: 0 | D155: 0
A156: - | B156: 0 | C156: 0 | D156: 0
A157: =A115 -> Supervisor (44h semanais) | B157: 1369.667285 | C157: 380.4631348 | D157: 1750.13042
A159: SUBMÓDULO 2.3 - BENEFÍCIOS MENSAIS E DIÁRIOS
A160: * O cálculo de benefícios mensais e diários dependerá das disposições constantes em Convenção Coletiva de Trabalho sobre os direitos negociados aos trabalhadores, observando sempre o custo efetivo a ser suportado pela Administração no contrato de prestação de serviços (descontados os valores arcados pelos empregados).
A162: VALE TRANSPORTE
A164: CUSTO DA PASSAGEM
A165: Categoria | B165: Vr. Unitário | C165: Vales por dia | D165: Dias efetivamente trabalhados | E165: Custo total
A166: Vigilante (12x36 Diurno) | B166: 5.5 | C166: 2 | D166: 15 | E166: =B166*C166*D166 -> 165
A167: Vigilante (12x36 Noturno) | B167: =B166 -> 5.5 | C167: =C166 -> 2 | D167: 15 | E167: 165
A168: Vigilante (44h semanais) | B168: =B167 -> 5.5 | C168: 2 | D168: 22 | E168: 242
A169: - | B169: 0 | C169: 2 | D169: 15 | E169: 0
A170: - | B170: =B169 -> 0 | C170: 2 | D170: 15 | E170: 0
A171: Supervisor (44h semanais) | B171: =B166 -> 5.5 | C171: 2 | D171: 22 | E171: 242
A173: DESCONTO DO VALE TRANSPORTE
A174: Categoria | B174: Base de cálculo | C174: Proporcionalidade | D174: Percentual | E174: Desconto
A175: Vigilante (12x36 Diurno) | B175: =B12 -> 2450.39 | C175: 0.5 | D175: 0.06 | E175: =B175*C175*D175 -> 73.5117
A176: Vigilante (12x36 Noturno) | B176: =B12 -> 2450.39 | C176: 0.5 | D176: 0.06 | E176: 73.5117
A177: Vigilante (44h semanais) | B177: =B12 -> 2450.39 | C177: 1 | D177: 0.06 | E177: 147.0234
A178: - | B178: 0 | C178: 0.5 | D178: 0.06 | E178: 0
A179: - | B179: 0 | C179: 0.5 | D179: 0.06 | E179: 0
A180: Supervisor (44h semanais) | B180: =B13 -> 2939.18 | C180: 1 | D180: 0.06 | E180: 176.3508
A182: CUSTO EFETIVO DO VALE TRANSPORTE
A183: Categoria | B183: Custo total | C183: Valor do desconto | D183: Custo efetivo
A184: Vigilante (12x36 Diurno) | B184: =E166 -> 165 | C184: =E175 -> 73.5117 | D184: =B184-C184 -> 91.4883
A185: Vigilante (12x36 Noturno) | B185: 165 | C185: 73.5117 | D185: =B185-C185 -> 91.4883
A186: Vigilante (44h semanais) | B186: 242 | C186: 147.0234 | D186: 94.9766
A187: - | B187: 0 | C187: 0 | D187: 0
A188: - | B188: 0 | C188: 0 | D188: 0
A189: Supervisor (44h semanais) | B189: 242 | C189: 176.3508 | D189: 65.6492
A191: VALE ALIMENTAÇÃO/REFEIÇÃO
A193: VALE ALIMENTAÇÃO/REFEIÇÃO
A194: Categoria | B194: Valor diário | C194: Dias efetivamente trabalhados | D194: Valor
A195: Vigilante (12x36 Diurno) | B195: 42.63 | C195: =D166 -> 15 | D195: =B195*C195 -> 639.45
A196: Vigilante (12x36 Noturno) | B196: =B195 -> 42.63 | C196: =D167 -> 15 | D196: =B196*C196 -> 639.45
A197: Vigilante (44h semanais) | B197: =B196 -> 42.63 | C197: 22 | D197: 937.86
A198: - | B198: 0 | C198: 15 | D198: 0
A199: - | B199: =B198 -> 0 | C199: 15 | D199: 0
A200: Supervisor (44h semanais) | B200: =B195 -> 42.63 | C200: 22 | D200: 937.86
A202: DESCONTO DO VALE ALIMENTAÇÃO/REFEIÇÃO
A203: Categoria | B203: Base de cálculo | C203: Percentual | D203: Desconto
A204: Vigilante (12x36 Diurno) | B204: =D195 -> 639.45 | C204: 0.02 | D204: =B204*C204 -> 12.789
A205: Vigilante (12x36 Noturno) | B205: =D196 -> 639.45 | C205: =C204 -> 0.02 | D205: =B205*C205 -> 12.789
A206: Vigilante (44h semanais) | B206: 937.86 | C206: =C205 -> 0.02 | D206: 18.7572
A207: - | B207: 0 | C207: =C206 -> 0.02 | D207: 0
A208: - | B208: 0 | C208: =C207 -> 0.02 | D208: 0
A209: Supervisor (44h semanais) | B209: 937.86 | C209: =C208 -> 0.02 | D209: 18.7572
A211: CUSTO EFETIVO DO VALE ALIMENTAÇÃO/REFEIÇÃO
A212: Categoria | B212: Custo total | C212: Desconto | D212: Custo efetivo
A213: Vigilante (12x36 Diurno) | B213: =D195 -> 639.45 | C213: =D204 -> 12.789 | D213: =B213-C213 -> 626.661
A214: Vigilante (12x36 Noturno) | B214: =D196 -> 639.45 | C214: =D205 -> 12.789 | D214: =B214-C214 -> 626.661
A215: Vigilante (44h semanais) | B215: 937.86 | C215: 18.7572 | D215: 919.1028
A216: - | B216: 0 | C216: 0 | D216: 0
A217: - | B217: 0 | C217: 0 | D217: 0
A218: Supervisor (44h semanais) | B218: 937.86 | C218: 18.7572 | D218: 919.1028
A220: BENEFÍCIO MÉDICO/HOSPITALAR, SEGURO DE VIDA E APOSENTADORIA Utilizar este campo em caso de outros benefícios previstos em Convenção Coletiva, sempre especificando o tipo, finalidade e previsão legal do mesmo.
A222: BENEFÍCIO MÉDICO/HOSPITALAR E OUTROS
A223: Categoria | B223: Plano de Saúde | C223: Fundo social odontológico | D223: Fundo de indenização aposentadoria/invalidez | E223: Seguro de vida | G223: Total
A224: Vigilante (12x36 Diurno) | B224: 151.9 | C224: 9.76 | D224: 15.19 | E224: 14.28 | G224: =B224+C224+D224+E224 -> 191.13
A225: Vigilante (12x36 Noturno) | B225: =B224 -> 151.9 | C225: =C224 -> 9.76 | D225: =D224 -> 15.19 | E225: =E224 -> 14.28 | G225: 191.13
A226: Vigilante (44h semanais) | B226: =B224 -> 151.9 | C226: =C224 -> 9.76 | D226: =D224 -> 15.19 | E226: =E224 -> 14.28 | G226: 191.13
A227: - | B227: 0 | C227: 0 | D227: 0 | E227: 0 | G227: 0
A228: - | B228: =B227 -> 0 | C228: 0 | D228: 0 | E228: 0 | G228: 0
A229: Supervisor (44h semanais) | B229: =B224 -> 151.9 | C229: =C224 -> 9.76 | D229: =D224 -> 15.19 | E229: =E224 -> 14.28 | G229: 191.13
A231: BENEFÍCIO YYY Utilizar este campo em caso de outros benefícios previstos em Convenção Coletiva, sempre especificando o tipo, finalidade e previsão legal do mesmo.
A233: BENEFÍCIO yyy
A234: Categoria
A235: Vigilante (12x36 Diurno)
A236: Vigilante (12x36 Noturno)
A237: Vigilante (44h semanais)
A238: -
A239: -
... 275 more rows

Sheet Cálculo materiais uniformes
A1: MEMÓRIA DE CÁLCULO DE MATERIAIS E UNIFORMES
A2: UNIFORME MASCULINO VIGILANTE
A3: ITEM | B3: DESCRIÇÃO | C3: VALOR MÉDIO UNITÁRIO | D3: QUANTIDADE ANUAL | E3: VALOR TOTAL ANUAL
A4: 1 | B4: Camisa (cor padrão da empresa) manga curta, em tecido de boa qualidade, contendo o emblema da Contratada bordado no lado superior esquerdo ou direito. | E4: =C4*D4 -> 0
A5: 2 | B5: camisa Interna manga curta (malha fria na cor preta com logomarca da empresa no lado superior esquerdo ou direito | E5: =C5*D5 -> 0
A6: 3 | B6: Jaqueta de frio, (cor padrão da empresa) , em tecido de qualidade, forrado internamente, inclusive na manga, com 2 (dois) bolsos inferiores, contendo o emblema da Contratada bordado no lado superior esquerdo. | E6: 0
A7: 4 | B7: Calça tipo tática em tecido ripstop na mesma cor da jaqueta. | E7: 0
A8: 5 | B8: Par de Meia em algodão, tipo soquete. | E8: 0
A9: 6 | B9: Bota tipo coturno tático operacional operacional | E9: 0
A10: 7 | B10: Boné (padrão da empresa) para utilização no posto externo. | E10: 0
A11: VALOR TOTAL | E11: =SUM(E4:E10) -> 0
A12: VALOR MENSAL POR VIGILANTE | E12: =E11/13 -> 0
A14: UNIFORME MASCULINO SUPERVISOR
A15: ITEM | B15: DESCRIÇÃO | C15: VALOR MÉDIO UNITÁRIO | D15: QUANTIDADE ANUAL | E15: VALOR TOTAL ANUAL
A16: 1 | B16: Camisa (cor padrão da empresa) manga curta, em tecido de boa qualidade, contendo o emblema da Contratada bordado no lado superior esquerdo ou direito. | E16: =C16*D16 -> 0
A17: 2 | B17: Camisa Interna manga curta (malha fria na cor preta com logomarca da empresa no lado superior esquerdo ou direito | E17: =C17*D17 -> 0
A18: 3 | B18: Camisa tipo gola pólo, na cor preta, manga curta, com logomarca da empresa no lado superior esquerdo ou direito e inscrição nas costas “VIGILANTE SUPERVISOR” | E18: 0
A19: 4 | B19: Jaqueta de frio, (cor padrão da empresa) , em tecido de qualidade, forrado internamente, inclusive na manga, com 2 (dois) bolsos inferiores, contendo o emblema da Contratada bordado no lado superior esquerdo. | E19: 0
A20: 5 | B20: Calça tipo tática em tecido ripstop na mesma cor da jaqueta. | E20: 0
A21: 6 | B21: Par de meia social em tecido liso, 100% algodão, na cor preta. | E21: 0
A22: 7 | B22: Sapato modelo social, de boa qualidade, em couro, na cor preta, solado antiderrapante. | E22: 0
A23: VALOR TOTAL | E23: =SUM(E16:E22) -> 0
A24: VALOR MENSAL POR VIGILANTE | E24: =E23/1 -> 0
A26: EQUIPAMENTO E MATERIAL
A27: ITEM | B27: DESCRIÇÃO | C27: VALOR MÉDIO UNITÁRIO | D27: QUANTIDADE | E27: VALOR TOTAL
A28: 1 | B28: Apito de metal, com cordão trançado | E28: =C28*D28 -> 0
A29: 2 | B29: Livro de Ocorrências | E29: =C29*D29 -> 0
A30: 3 | B30: Revólver calibre 38 com, no mínimo, cinco tiros (padrão) | E30: 0
A31: 4 | B31: Munições de calibre 38 | E31: 0
A32: 5 | B32: Lanterna Tática Profissional portátil (com bateria recarregável e carregador) | E32: =C32*D32 -> 0
A33: 6 | B33: Colete Balístico Nível III, conforme Portaria 191/2006 M.T.E (Novo, placa com validade de 5 anos) | E33: =C33*D33 -> 0
A34: 8 | B34: Capa para guarda de colete balístico (Colete tático) | E34: 0
A35: 9 | B35: Cinto tático guarnição completa (com coldre, porta munição, porta lanterna e porta tonfa) | E35: 0
A36: 10 | B36: Tonfa em fibra | E36: 0
A37: 11 | B37: Espargidor defensivo (Spray de pimenta) | E37: 0
A38: 12 | B38: Capa de Chuva (Em PVC, seu comprimento é de tamanho longo, protegendo o tronco e pernas, possuir botões de pressão de boa qualidade). | E38: 0
A39: 13 | B39: Protetor solar (postos externos com validade dentro da vigência do contrato) | E39: 0
A40: 14 | B40: Cofre de segurança para revólveres | E40: 0
A41: 15 | B41: Rádio de comunicação móvel e portátil (transmissor HT) com base e carregadores | E41: 0
A42: TOTAL | E42: =SUM(E28:E41) -> 0
